fUST/lending_fUST_20240527
["ID","MTS","AMOUNT","RATE_DAILY","PERIOD"]
[327985193,1716748249240,-323.862327,0.00013699,2]
[327985194,1716748249249,-323.862327,0.00013699,2]
[327985195,1716748249259,-323.862327,0.00013699,2]
[327985196,1716748249268,-323.862319,0.00013699,2]
[327985197,1716748249278,-151.0,0.00013699,2]
[327985198,1716748249287,-151.0,0.00013699,2]
[327985199,1716748249296,-151.0,0.00013699,2]
[327985200,1716748249306,-911.719326,0.00013699,2]
[327985201,1716748249316,-911.719326,0.00013699,2]
[327985202,1716748249405,-911.719326,0.00013699,2]
[327985203,1716748249415,-911.719326,0.00013699,2]
[327985204,1716748249424,-911.719326,0.00013699,2]
[327985205,1716748249433,-911.719323,0.00013699,2]
[327985206,1716748249443,-151.0,0.00013699,2]
[327985207,1716748249452,-151.0,0.00013699,2]
[327985208,1716748249462,-151.0,0.00013699,2]
[327985209,1716748249471,-820.385098,0.00013699,2]
[327985210,1716748249480,-820.385098,0.00013699,2]
[327985211,1716748249489,-820.385098,0.00013699,2]
[327985212,1716748249499,-820.385098,0.00013699,2]
[327985213,1716748249509,-820.385098,0.00013699,2]
[327985214,1716748249518,-820.385099,0.00013699,2]
[327985215,1716748249527,-538.681339,0.00013699,2]
[327985216,1716748249537,-538.681339,0.00013699,2]
[327985217,1716748249546,-538.681339,0.00013699,2]
[327985218,1716748249555,-538.681339,0.00013699,2]
[327985219,1716748249564,-283.89725164,0.000137,2]
[327985220,1716748249573,-309.65937468,0.0001392,2]
[327985221,1716748249583,-2404.21274999,0.00015,2]
[327985222,1716748249593,-154.93802479,0.00015,2]
[327985223,1716748249602,-154.93802479,0.00015,2]
[327985224,1716748249611,-42671.80934391,0.00015,2]
[327985225,1716748249621,-273.93598036,0.00015022,2]
[327985226,1716748249630,-302.66477058,0.00015023,2]
[327985227,1716748249640,-154.97370123,0.00015023,2]
[327985228,1716748249650,-309.50677013,0.00015023,2]
[327985229,1716748249659,-1685.54934894,0.00015024,2]
[327985230,1716748249668,-155.23710437,0.00015027,2]
[327985231,1716748249680,-155.38338781,0.00015028,2]
[327985232,1716748249689,-1373.36058678,0.00015029,2]
[327985233,1716748249698,-566.01283752,0.00015031,2]
[327985234,1716748249707,-7902.09549174,0.00015071,2]
[327985235,1716748249716,-943.36429939,0.00015085,2]
[327985236,1716748249726,-164.28466186,0.00015097,2]
[327985237,1716748249735,-163.93660744,0.00015138,2]
[327985238,1716748249744,-190.06506775,0.000156,2]
[327985239,1716748249754,-154.8915759,0.00015932,2]
[327985240,1716748249763,-354.56402342,0.00015939,2]
[327985241,1716748249773,-480.02811,0.00016438,2]
[327985242,1716748249783,-480.02811,0.00016438,2]
[327985243,1716748249793,-480.02811,0.00016438,2]
[327985244,1716748249806,-480.02811,0.00016438,2]
[327985245,1716748249815,-480.02811,0.00016438,2]
[327985246,1716748249826,-480.02811,0.00016438,2]
[327985247,1716748249837,-480.02811,0.00016438,2]
[327985248,1716748249848,-480.02811,0.00016438,2]
[327985249,1716748249860,-480.02811,0.00016438,2]
[327985250,1716748249870,-480.02811,0.00016438,2]
[327985251,1716748249882,-480.02811,0.00016438,2]
[327985252,1716748249891,-480.02811,0.00016438,2]
[327985253,1716748249900,-480.02811,0.00016438,2]
[327985254,1716748249909,-480.02811,0.00016438,2]
[327985255,1716748249921,-480.02811,0.00016438,2]
[327985256,1716748249931,-480.02811,0.00016438,2]
[327985257,1716748249941,-480.02811,0.00016438,2]
[327985258,1716748249950,-480.02811,0.00016438,2]
[327985259,1716748249960,-480.02811,0.00016438,2]
[327985260,1716748249969,-480.02811,0.00016438,2]
[327985261,1716748249978,-151.0,0.00016438,2]
[327985262,1716748249987,-151.0,0.00016438,2]
[327985263,1716748249997,-151.0,0.00016438,2]
[327985264,1716748250006,-151.0,0.00016438,2]
[327985265,1716748250015,-151.0,0.00016438,2]
[327985266,1716748250025,-151.0,0.00016438,2]
[327985267,1716748250034,-151.0,0.00016438,2]
[327985268,1716748250043,-151.0,0.00016438,2]
[327985269,1716748250052,-151.0,0.00016438,2]
[327985270,1716748250062,-151.0,0.00016438,2]
[327985271,1716748250071,-151.0,0.00016438,2]
[327985272,1716748250080,-151.0,0.00016438,2]
[327985273,1716748250089,-151.0,0.00016438,2]
[327985274,1716748250099,-151.0,0.00016438,2]
[327985275,1716748250108,-151.0,0.00016438,2]
[327985276,1716748250117,-234.132963,0.00016438,2]
[327985277,1716748250126,-523.01612629,0.00017985,2]
[327985278,1716748250137,-1342.26649227,0.00017989,2]
[327985279,1716748250146,-2053.19903549,0.00017991,2]
[327985280,1716748250155,-896.50695997,0.00018,2]
[327985281,1716748250165,-2878.84497084,0.000189,2]
[327985282,1716748250174,-163.345509,0.00019178,2]
[327985283,1716748250183,-163.345509,0.00019178,2]
[327985284,1716748250193,-163.750523,0.00019178,2]
[327985285,1716748250202,-151.0,0.00019178,2]
[327985286,1716748250211,-151.0,0.00019178,2]
[327985287,1716748250220,-151.0,0.00019178,2]
[327985288,1716748250229,-151.0,0.00019178,2]
[327985289,1716748250238,-151.0,0.00019178,2]
[327985290,1716748250247,-151.0,0.00019178,2]
[327985291,1716748250257,-151.0,0.00019178,2]
[327985292,1716748250266,-151.0,0.00019178,2]
[327985293,1716748250275,-151.0,0.00019178,2]
[327985294,1716748250284,-151.0,0.00019178,2]
[327985295,1716748250293,-151.0,0.00019178,2]
[327985296,1716748250302,-151.0,0.00019178,2]
[327985297,1716748250312,-151.0,0.00019178,2]
[327985298,1716748250322,-151.0,0.00019178,2]
[327985299,1716748250331,-151.0,0.00019178,2]
[327985300,1716748250340,-151.0,0.00019178,2]
[327985301,1716748250350,-151.0,0.00019178,2]
[327985302,1716748250359,-151.0,0.00019178,2]
[327985303,1716748250369,-151.0,0.00019178,2]
[327985304,1716748250378,-151.0,0.00019178,2]
[327985305,1716748250388,-164.791064,0.00019178,2]
[327985306,1716748250398,-163.345509,0.00019178,2]
[327985307,1716748250407,-1000.0,0.00019696,2]
[327985308,1716748250418,-1000.0,0.00019752,2]
[327985309,1716748250428,-1000.0,0.00019822,2]
[327985310,1716748250438,-1000.0,0.00019826,2]
[327985311,1716748250449,-1000.0,0.00019827,2]
[327985312,1716748250459,-1000.0,0.00019834,2]
[327985313,1716748250468,-1000.0,0.00019842,2]
[327985314,1716748250478,-1000.0,0.00019871,2]
[327985315,1716748250488,-745.74739704,0.00019884,2]
[327985316,1716748250498,-1000.0,0.00019896,2]
[327985317,1716748250507,-573.37021422,0.00019922,2]
[327985318,1716748250516,-1000.0,0.00019948,2]
[327985319,1716748250526,-1000.0,0.0001996,2]
[327985320,1716748250535,-1000.0,0.00019962,2]
[327985321,1716748250544,-803.81925315,0.00019963,2]
[327985322,1716748250553,-1000.0,0.00019968,2]
[327985323,1716748250563,-1000.0,0.00019971,2]
[327985324,1716748250572,-1000.0,0.00019972,2]
[327985325,1716748250581,-1000.0,0.00019988,2]
[327985326,1716748250591,-509.26614717,0.00019989,2]
[327985327,1716748250600,-155.15694195,0.00019993,2]
[327985328,1716748250609,-6876.89284611,0.0002,2]
[327985329,1716748250618,-181.11191058,0.0002,2]
[327985330,1716748250703,-414.72719987,0.0002,2]
[327985331,1716748250713,-2195.58483774,0.0002,2]
[327985332,1716748250722,-527.75391758,0.0002,4]
[327985333,1716748250731,-1351.93473586,0.0002,2]
[327985334,1716748250741,-17610.69254065,0.0002,2]
[327985335,1716748250750,-155.03051623,0.0002,2]
[327985336,1716748250759,-186.39835571,0.0002,2]
[327985337,1716748250768,-11216.70092476,0.0002,2]
[327985338,1716748250778,-279.1103904,0.0002,2]
[327985339,1716748250787,-163.93660744,0.00020078,2]
[327985340,1716748250799,-157.37250312,0.00020911,2]
[327985341,1716748250809,-155.50050359,0.00020911,2]
[327985342,1716748250818,-230.68622516,0.00020911,2]
[327985343,1716748250827,-1152.36513841,0.00020911,2]
[327985344,1716748250836,-180.38717709,0.00020912,2]
[327985345,1716748250846,-155.00680195,0.00020913,2]
[327985346,1716748250855,-3981.96955357,0.00021,2]
[327985347,1716748250864,-3000.0,0.000215,2]
[327985348,1716748250873,-3000.0,0.0002151,2]
[327985349,1716748250885,-3000.0,0.0002152,2]
[327985350,1716748250895,-3000.0,0.0002153,2]
[327985351,1716748250904,-3000.0,0.0002154,2]
[327985352,1716748250913,-3000.0,0.0002155,2]
[327985353,1716748250922,-3000.0,0.0002156,2]
[327985354,1716748250932,-3000.0,0.0002157,2]
[327985355,1716748250941,-3000.0,0.0002158,2]
[327985356,1716748250950,-5647.6046,0.0002159,2]
[327985357,1716748250960,-10000.0,0.00021918,2]
[327985358,1716748250970,-188.75,0.00021918,2]
[327985359,1716748250980,-188.75,0.00021918,2]
[327985360,1716748250989,-188.75,0.00021918,2]
[327985361,1716748250998,-188.75,0.00021918,2]
[327985362,1716748251008,-188.75,0.00021918,2]
[327985363,1716748251017,-188.75,0.00021918,2]
[327985364,1716748251026,-188.75,0.00021918,2]
[327985365,1716748251036,-188.75,0.00021918,2]
[327985366,1716748251045,-188.75,0.00021918,2]
[327985367,1716748251055,-188.75,0.00021918,2]
[327985368,1716748251064,-188.75,0.00021918,2]
[327985369,1716748251074,-188.75,0.00021918,2]
[327985370,1716748251084,-188.75,0.00021918,2]
[327985371,1716748251093,-188.75,0.00021918,2]
[327985372,1716748251103,-188.75,0.00021918,2]
[327985373,1716748251113,-188.75,0.00021918,2]
[327985374,1716748251122,-188.75,0.00021918,2]
[327985375,1716748251131,-188.75,0.00021918,2]
[327985376,1716748251142,-188.75,0.00021918,2]
[327985377,1716748251151,-188.75,0.00021918,2]
[327985378,1716748251160,-166.666666,0.00021918,2]
[327985379,1716748251170,-159.8994937,0.00022,2]
[327985380,1716748251181,-456.0,0.00022,2]
[327985381,1716748251190,-456.0,0.00022192,2]
[327985382,1716748251199,-2743.14682766,0.000223,6]
[327985383,1716748251208,-166.666666,0.00022431,2]
[327985384,1716748251217,-2157.64637747,0.000225,2]
[327985385,1716748251228,-153.0,0.00022728,2]
[327985386,1716748251237,-153.0,0.00022728,2]
[327985387,1716748251247,-153.0,0.00022728,2]
[327985388,1716748251256,-153.0,0.00022728,2]
[327985389,1716748251266,-153.0,0.00022728,2]
[327985390,1716748251275,-151.0,0.00022874,3]
[327985391,1716748251285,-151.0,0.00022874,3]
[327985392,1716748251295,-166.666666,0.00022944,2]
[327985393,1716748251304,-4697.14874934,0.00023,2]
[327985394,1716748251313,-456.0,0.00023014,2]
[327985395,1716748251323,-150.92453773,0.0002335,2]
[327985396,1716748251332,-166.666666,0.00023456,2]
[327985397,1716748251342,-727.41092891,0.0002352,2]
[327985398,1716748251351,-151.0,0.00023534,5]
[327985399,1716748251360,-151.0,0.00023534,5]
[327985400,1716748251369,-2878.84497084,0.000239,2]
[327985401,1716748251379,-166.666666,0.00023969,2]
[327985402,1716748251389,-187.39912452,0.00024,2]
[327985403,1716748251398,-463.0,0.00024164,2]
[327985404,1716748251408,-151.0,0.00024195,5]
[327985405,1716748251417,-151.0,0.00024195,5]
[327985406,1716748251427,-154.0014752,0.00024274,2]
[327985407,1716748251436,-169.5083448,0.00024274,2]
[327985408,1716748251445,-153.0,0.00024274,2]
[327985409,1716748251455,-204.7013805,0.00024274,2]
[327985410,1716748251464,-153.0,0.00024274,2]
[327985411,1716748251473,-153.0,0.00024274,2]
[327985412,1716748251483,-155.513861,0.00024274,2]
[327985413,1716748251492,-153.0,0.00024274,2]
[327985414,1716748251502,-153.0,0.00024274,2]
[327985415,1716748251511,-153.0,0.00024274,2]
[327985416,1716748251520,-204.7013805,0.00024274,2]
[327985417,1716748251530,-153.0,0.00024274,2]
[327985418,1716748251540,-153.0,0.00024274,2]
[327985419,1716748251552,-204.7013805,0.00024274,2]
[327985420,1716748251562,-291.7186327,0.00024274,2]
[327985421,1716748251573,-204.7013805,0.00024274,2]
[327985422,1716748251584,-291.7186327,0.00024274,2]
[327985423,1716748251595,-291.7186327,0.00024274,2]
[327985424,1716748251606,-291.7186327,0.00024274,2]
[327985425,1716748251615,-204.7013805,0.00024274,2]
[327985426,1716748251625,-291.7186327,0.00024274,2]
[327985427,1716748251634,-152.0,0.0002429,6]
[327985428,1716748251644,-750.0,0.00024384,2]
[327985429,1716748251653,-5918.42149045,0.00024397,2]
[327985430,1716748251663,-166.666666,0.00024482,2]
[327985431,1716748251674,-3011.02527564,0.00024626,2]
[327985432,1716748251683,-625.37054645,0.00024696,2]
[327985433,1716748251692,-151.0,0.00024855,5]
[327985434,1716748251701,-155.05153825,0.00025,2]
[327985435,1716748251711,-13375.73791579,0.00025,2]
[327985436,1716748251720,-401.16149513,0.00025,2]
[327985437,1716748251730,-280.06085958,0.00025,2]
[327985438,1716748251739,-174.77770949,0.00025,2]
[327985439,1716748251749,-163.93660744,0.00025019,2]
[327985440,1716748251758,-204.6274004,0.00025096,2]
[327985441,1716748251767,-306.0,0.00025194,2]
[327985442,1716748251778,-151.0,0.00025515,5]
[327985443,1716748251789,-150.0,0.00025587,2]
[327985444,1716748251803,-399.687,0.00025587,2]
[327985445,1716748251813,-456.0,0.00025775,2]
[327985446,1716748251822,-282.0,0.000259,2]
[327985447,1716748251831,-620.26852732,0.00025931,2]
[327985448,1716748251912,-150.92453773,0.00025944,2]
[327985449,1716748251922,-250.36569715,0.00025944,2]
[327985450,1716748251931,-10739.18864934,0.00026,2]
[327985451,1716748251941,-151.0,0.00026175,5]
[327985452,1716748251950,-301.84907546,0.00026381,4]
[327985453,1716748251960,-420.299999,0.000266,2]
[327985454,1716748251970,-603.69815092,0.00026824,7]
[327985455,1716748251979,-151.0,0.00026836,7]
[327985456,1716748251989,-249.999999,0.00027,2]
[327985457,1716748251998,-150.145,0.00027125,2]
[327985458,1716748252008,-152.002,0.00027125,2]
[327985459,1716748252018,-166.91046477,0.00027275,4]
[327985460,1716748252027,-153.0,0.00027288,2]
[327985461,1716748252037,-456.0,0.00027386,2]
[327985462,1716748252047,-500.0,0.00027397,2]
[327985463,1716748252056,-362.791529,0.00027397,2]
[327985464,1716748252066,-362.791529,0.00027397,2]
[327985465,1716748252075,-362.791529,0.00027397,2]
[327985466,1716748252084,-362.791529,0.00027397,2]
[327985467,1716748252094,-362.791529,0.00027397,2]
[327985468,1716748252104,-362.791529,0.00027397,2]
[327985469,1716748252113,-362.791529,0.00027397,2]
[327985470,1716748252123,-362.791529,0.00027397,2]
[327985471,1716748252132,-362.791529,0.00027397,2]
[327985472,1716748252142,-362.791529,0.00027397,2]
[327985473,1716748252152,-362.791529,0.00027397,2]
[327985474,1716748252163,-362.791529,0.00027397,2]
[327985475,1716748252172,-362.791529,0.00027397,2]
[327985476,1716748252182,-362.791529,0.00027397,2]
[327985477,1716748252191,-362.791529,0.00027397,2]
[327985478,1716748252200,-362.791529,0.00027397,2]
[327985479,1716748252209,-362.791529,0.00027397,2]
[327985480,1716748252218,-362.791529,0.00027397,2]
[327985481,1716748252227,-362.791529,0.00027397,2]
[327985482,1716748252237,-362.791533,0.00027397,2]
[327985483,1716748252246,-151.0,0.00027397,2]
[327985484,1716748252255,-151.0,0.00027397,2]
[327985485,1716748252264,-151.0,0.00027397,2]
[327985486,1716748252275,-151.0,0.00027397,2]
[327985487,1716748252284,-151.0,0.00027397,2]
[327985488,1716748252294,-151.0,0.00027397,2]
[327985489,1716748252305,-151.0,0.00027397,2]
[327985490,1716748252314,-151.0,0.00027397,2]
[327985491,1716748252323,-151.0,0.00027397,2]
[327985492,1716748252332,-151.0,0.00027397,2]
[327985493,1716748252341,-151.0,0.00027397,2]
[327985494,1716748252351,-151.0,0.00027496,7]
[327985495,1716748252360,-17967.08930887,0.000275,2]
[327985496,1716748252370,-1881.861407,0.000275,2]
[327985497,1716748252379,-1207.39630185,0.00027503,30]
[327985498,1716748252388,-300.0,0.000276,2]
[327985499,1716748252398,-456.0,0.00027616,2]
[327985500,1716748252407,-500.0,0.00027671,3]
[327985501,1716748252416,-500.0,0.00027945,4]
[327985502,1716748252425,-304.45245995,0.00027996,2]
[327985503,1716748252449,-266.90415008,0.00027998,2]
[327985504,1716748252465,-251.7553016,0.00027998,2]
[327985505,1716748252485,-690.72744387,0.00027998,2]
[327985506,1716748252507,-62902.4692195,0.00028,4]
[327985507,1716748252527,-761.19376137,0.00028,2]
[327985508,1716748252545,-456.67881276,0.00028,2]
[327985509,1716748252560,-221.83484626,0.00028,2]
[327985510,1716748252576,-309.70578646,0.00028,2]
[327985511,1716748252594,-500.0,0.00028219,5]
[327985512,1716748252614,-161.498,0.00028286,2]
[327985513,1716748252627,-500.0,0.00028493,6]
[327985514,1716748252644,-300.0,0.000286,2]
[327985515,1716748252659,-591.0,0.000286,2]
[327985516,1716748252676,-500.0,0.00028767,7]
[327985517,1716748252688,-2878.84497084,0.000289,2]
[327985518,1716748252703,-600.0,0.00028932,2]
[327985519,1716748252717,-456.0,0.00028997,2]
[327985520,1716748252731,-1012.10349864,0.00028998,2]
[327985521,1716748252744,-850.21012363,0.00028998,2]
[327985522,1716748252758,-285.29263438,0.00029,2]
[327985523,1716748252772,-500.0,0.00029041,8]
[327985524,1716748252786,-4950.0,0.000292,5]
[327985525,1716748252803,-153.0,0.00029233,2]
[327985526,1716748252818,-153.0,0.00029233,2]
[327985527,1716748252832,-153.0,0.00029233,2]
[327985528,1716748252848,-153.0,0.00029233,2]
[327985529,1716748252862,-153.0,0.00029233,2]
[327985530,1716748252877,-153.0,0.00029233,2]
[327985531,1716748252891,-204.7013805,0.00029233,2]
[327985532,1716748252906,-600.0,0.00029233,2]
[327985533,1716748252920,-152.73210619,0.00029273,2]
[327985534,1716748252934,-500.0,0.00029315,9]
[327985535,1716748252949,-7050.02975207,0.000294,2]
[327985536,1716748252962,-1902.46711687,0.00029494,10]
[327985537,1716748252977,-306.82904941,0.00029498,2]
[327985538,1716748252991,-282.79519979,0.00029498,2]
[327985539,1716748253005,-261.10630803,0.00029498,2]
[327985540,1716748253020,-53226.97228032,0.000295,2]
[327985541,1716748253034,-160.0,0.000295,2]
[327985542,1716748253049,-600.0,0.00029534,2]
[327985543,1716748253064,-500.0,0.00029589,10]
[327985544,1716748253078,-353.10567888,0.00029589,2]
[327985545,1716748253092,-300.0,0.000296,2]
[327985546,1716748253107,-152.21925655,0.00029651,2]
[327985547,1716748253122,-353.10567888,0.00029662,2]
[327985548,1716748253138,-1768.74668551,0.00029679,2]
[327985549,1716748253153,-152.21925655,0.00029753,2]
[327985550,1716748253169,-1776.141,0.000298,2]
[327985551,1716748253183,-808.77517036,0.00029836,2]
[327985552,1716748253197,-353.10567888,0.00029856,2]
[327985553,1716748253212,-500.0,0.00029863,11]
[327985554,1716748253228,-194.93294491,0.00029864,2]
[327985555,1716748253239,-163.93660744,0.00029959,2]
[327985556,1716748253369,-1768.74668551,0.00029987,2]
[327985557,1716748253388,-1768.74668551,0.0002999,2]
[327985558,1716748253398,-154.86062544,0.0003,4]
[327985559,1716748253408,-18221.17296281,0.0003,2]
[327985560,1716748253417,-17248.45176392,0.0003,10]
[327985561,1716748253426,-468.39541763,0.0003,4]
[327985562,1716748253436,-464.78830065,0.0003,30]
[327985563,1716748253445,-154.87609912,0.0003,4]
[327985564,1716748253455,-1971.02238483,0.0003,2]
[327985565,1716748253464,-60000.0,0.0003,2]
[327985566,1716748253472,-1868.48,0.0003,4]
[327985567,1716748253480,-3028.78863599,0.0003,3]
[327985568,1716748253488,-3026.67096467,0.0003,3]
[327985569,1716748253496,-227.0,0.0003,2]
[327985570,1716748253504,-190.86188111,0.00030053,4]
[327985571,1716748253512,-157.79650866,0.00030053,4]
[327985572,1716748253520,-293.30260328,0.00030053,4]
[327985573,1716748253528,-155.87255548,0.00030053,4]
[327985574,1716748253536,-300.97617143,0.00030053,4]
[327985575,1716748253544,-163.16913109,0.00030053,4]
[327985576,1716748253552,-153.0,0.00030055,2]
[327985577,1716748253560,-176.903949,0.00030055,2]
[327985578,1716748253569,-353.10567888,0.00030073,7]
[327985579,1716748253576,-282.0,0.000301,2]
[327985580,1716748253585,-282.0,0.000301,2]
[327985581,1716748253593,-564.0,0.000301,2]
[327985582,1716748253601,-564.0,0.000301,2]
[327985583,1716748253609,-212.0,0.000301,2]
[327985584,1716748253618,-1776.141,0.000301,2]
[327985585,1716748253626,-150.0,0.00030125,2]
[327985586,1716748253634,-307.575736,0.00030125,2]
[327985587,1716748253645,-529.84344689,0.00030135,4]
[327985588,1716748253655,-500.0,0.00030136,12]
[327985589,1716748253664,-7446.462804,0.00030137,2]
[327985590,1716748253673,-7446.462804,0.00030137,2]
[327985591,1716748253682,-7446.462804,0.00030137,2]
[327985592,1716748253690,-7446.462804,0.00030137,2]
[327985593,1716748253699,-7446.462804,0.00030137,2]
[327985594,1716748253707,-7446.462804,0.00030137,2]
[327985595,1716748253716,-7446.462804,0.00030137,2]
[327985596,1716748253724,-7446.462804,0.00030137,2]
[327985597,1716748253733,-7446.462804,0.00030137,2]
[327985598,1716748253742,-7446.462804,0.00030137,2]
[327985599,1716748253750,-7446.462804,0.00030137,2]
[327985600,1716748253773,-7446.462804,0.00030137,2]
[327985601,1716748253784,-7446.462804,0.00030137,2]
[327985602,1716748253793,-7446.462804,0.00030137,2]
[327985603,1716748253807,-7446.462804,0.00030137,2]
[327985604,1716748253816,-7446.462804,0.00030137,2]
[327985605,1716748253826,-7446.462804,0.00030137,2]
[327985606,1716748253835,-4957.34590394,0.00030137,2]
[327985607,1716748255061,6119.33471701,0.0001,2]
[327985667,1716749435144,-154.93802479,0.0001029,2]
[327985669,1716749435153,-250.0,0.00013371,2]
[327985671,1716749435163,-4718.66667402,0.00013696,2]
[327985673,1716749435177,-316.23475701,0.00013696,2]
[327985717,1716749438315,-5484.81660749,0.00013696,2]
[327985719,1716749438325,-4506.29014397,0.00013697,2]
[327985721,1716749438336,-194.310254,0.00013699,2]
[327985723,1716749438345,-151.19278509,0.000148,2]
[327985725,1716749438355,-163.93660744,0.000149,2]
[327985727,1716749438364,-154.93802479,0.00015,2]
[327985729,1716749438373,-286.04727348,0.00015,2]
[327985731,1716749438382,-2404.21274999,0.00015,2]
[327985733,1716749438391,-24900.0,0.0001568,2]
[327985735,1716749438400,-163.345509,0.00019178,2]
[327985737,1716749438409,-163.345509,0.00019178,2]
[327985739,1716749438419,-181.11191058,0.0002,2]
[327985741,1716749438429,-281.86481366,0.0002,2]
[327985743,1716749438439,-2195.58483774,0.0002,2]
[327985745,1716749438449,-414.72719987,0.0002,2]
[327985747,1716749438458,-1362.4666193,0.00020913,2]
[327985749,1716749438468,-3981.96955357,0.00021,2]
[327985751,1716749438478,-150.0,0.000215,2]
[327985753,1716749438487,-166.666666,0.00021918,2]
[327985755,1716749438497,-1164.74208971,0.00021918,2]
[327985757,1716749438508,-2087.48698032,0.00021918,2]
[327985759,1716749438520,-6747.77092997,0.00021918,2]
[327985761,1716749438530,-159.8994937,0.00022,2]
[327985763,1716749438540,-166.666666,0.00022431,2]
[327985766,1716749438549,-527.75391758,0.00022736,4]
[327985767,1716749438559,-166.666666,0.00022944,2]
[327985769,1716749438568,-4697.14874934,0.00023,2]
[327985771,1716749438577,-166.666666,0.00023456,2]
[327985773,1716749438587,-166.666666,0.00023969,2]
[327985775,1716749438596,-187.39912452,0.00024,2]
[327985778,1716749438607,-187.5,0.00024384,2]
[327985780,1716749438616,-712.5,0.00024384,2]
[327985782,1716749438626,-166.666666,0.00024482,2]
[327985784,1716749438635,-3599.72927347,0.000248,3]
[327985786,1716749438645,-876.5428268,0.00025,2]
[327985787,1716749438654,-761.19376137,0.00025,2]
[327985789,1716749438664,-13375.73791579,0.00025,2]
[327985790,1716749438676,-401.16149513,0.00025,2]
[327985792,1716749438685,-174.77770949,0.00025,2]
[327985794,1716749438694,-420.299999,0.000266,2]
[327985796,1716749438703,-3572.92196632,0.000269,2]
[327985797,1716749438712,-3572.92196628,0.00026989,2]
[327985798,1716749438722,-940.80600565,0.00027123,2]
[327985799,1716749438731,-500.0,0.00027397,2]
[327985800,1716749438741,-3572.92196628,0.00027477,2]
[327985801,1716749438751,-300.0,0.000276,2]
[327985802,1716749438760,-552.92660362,0.00027671,3]
[327985803,1716749438769,-3572.92196628,0.00027966,2]
[327985804,1716749438778,-221.83484626,0.00028,2]
[327985805,1716749438788,-3572.92196628,0.00028455,2]
[327985806,1716749438798,-300.0,0.000286,2]
[327985807,1716749438807,-2000.0,0.0002867,2]
[327985808,1716749438816,-116448.49812035,0.0002877,2]
[327985849,1716749581288,403.88807297,9.999e-05,2]
[327985912,1716750634562,-169.61011297,0.00018453,2]
[327985914,1716750634571,-154.53058883,0.00018453,2]
[327985916,1716750634582,-977.8592982,0.00018552,2]
[327985918,1716750634595,-41031.99218282,0.00018552,2]
[327985920,1716750634604,-13893.9250596,0.00018553,2]
[327985921,1716750634613,-150.0,0.000189,2]
[327985923,1716750634623,-163.345509,0.00019178,2]
[327985925,1716750634632,-250.0,0.00019202,2]
[327985927,1716750634642,-207.66619272,0.00019437,2]
[327985929,1716750634651,-542.5560979,0.00019898,2]
[327985930,1716750634660,-4421.12654105,0.00019899,2]
[327985932,1716750634669,-772.75081809,0.00019999,2]
[327985934,1716750634678,-1143.89970046,0.0002,2]
[327985936,1716750634687,-414.72719987,0.0002,2]
[327985938,1716750634697,-287.7429695,0.00020911,2]
[327985940,1716750634706,-181.56241681,0.00020912,2]
[327985941,1716750634715,-9060.43518429,0.00020913,2]
[327985943,1716750634724,-154.53058877,0.00021194,2]
[327985945,1716750634734,-181.11191058,0.00021578,2]
[327985947,1716750634743,-166.666666,0.00021918,2]
[327985949,1716750634753,-2584.2035864,0.00021918,2]
[327985951,1716750634762,-159.8994937,0.00022,2]
[327985952,1716750634772,-151.0,0.00022209,3]
[327985954,1716750634781,-151.0,0.00022209,3]
[327985956,1716750634790,-166.666666,0.00022431,2]
[327985958,1716750634799,-17802.75193389,0.000225,2]
[327985960,1716750634811,-3444.45,0.000225,2]